bitfinex/quotes_SOLUSD_20250815
["timestamp","ask_amount","ask_price","bid_price","bid_amount"]
[1755243306033,36.36,197.28,197.27,13.11255575]
[1755243307531,36.36,197.28,197.27,13.78255575]
[1755243307843,36.36,197.28,197.27,18.85175025]
[1755243308020,0.06,197.28,197.27,18.85175025]
[1755243311946,0.06,197.28,197.27,5.7391945]
[1755243312155,0.06,197.28,197.27,18.85175025]
[1755243313171,0.06,197.3,197.27,18.85175025]
[1755243313340,0.06,197.3,197.29,39.11255575]
[1755243313724,0.06,197.32,197.29,44.85123637]
[1755243313940,0.06,197.32,197.3,0.67]
[1755243314246,0.06,197.32,197.31,13.11255575]
[1755243315123,0.06,197.34,197.33,13.11255575]
[1755243315942,37.40906888,197.34,197.33,13.11255575]
[1755243316147,36.36,197.34,197.33,13.11255575]
[1755243316348,37.40906888,197.34,197.33,13.11255575]
[1755243317128,37.40906888,197.34,197.33,18.18020891]
[1755243318034,36.36,197.34,197.33,18.18020891]
[1755243318453,36.36,197.34,197.33,18.85020891]
[1755243318639,0.06,197.34,197.33,18.85020891]
[1755243318838,0.06,197.34,197.33,18.18020891]
[1755243320848,1.10906888,197.34,197.33,18.18020891]
[1755243321653,0.06,197.34,197.33,18.18020891]
[1755243321836,1.10906888,197.34,197.33,18.18020891]
[1755243322656,1.10906888,197.34,197.33,13.15631866]
[1755243323483,1.80906888,197.34,197.33,13.15631866]
[1755243323837,1.80906888,197.34,197.32,5.09784689]
[1755243324139,1.10906888,197.34,197.33,8.0886655]
[1755243324863,1.80906888,197.34,197.33,8.0886655]
[1755243325247,1.80906888,197.34,197.33,13.15631866]
[1755243325447,1.10906888,197.34,197.33,13.15631866]
[1755243326252,0.06,197.34,197.33,13.15631866]
[1755243326438,0.06,197.34,197.33,13.82631866]
[1755243326632,1.10906888,197.34,197.33,13.15631866]
[1755243328266,1.10906888,197.34,197.33,5.06765316]
[1755243328473,1.80906888,197.34,197.33,13.15631866]
[1755243328641,1.10906888,197.34,197.33,13.15631866]
[1755243328966,0.06,197.34,197.33,13.15631866]
[1755243329156,1.10906888,197.34,197.33,13.15631866]
[1755243329333,0.06,197.34,197.33,13.15631866]
[1755243329936,1.10906888,197.34,197.33,13.15631866]
[1755243334977,37.96906888,197.34,197.32,0.03]
[1755243335187,1.04906888,197.33,197.32,0.03]
[1755243335342,1.74906888,197.33,197.32,0.03]
[1755243335550,1.04906888,197.33,197.32,8.1186655]
[1755243336544,1.04906888,197.33,197.32,13.18657549]
[1755243336770,1.74906888,197.33,197.32,0.03]
[1755243336973,1.74906888,197.33,197.32,8.1186655]
[1755243337465,1.74906888,197.33,197.32,0.03]
[1755243342064,16.85528445,197.33,197.32,0.03]
[1755243342373,20.22671554,197.33,197.32,0.03]
[1755243344758,25.2943687,197.33,197.32,0.03]
[1755243345583,55.2943687,197.33,197.32,0.03]
[1755243346495,55.80676846,197.33,197.32,0.03]
[1755243346983,50.7391153,197.33,197.32,0.03]
[1755243347303,50.7391153,197.33,197.32,8.1186655]
[1755243347304,31.04906888,197.33,197.32,8.1186655]
[1755243347460,67.12906888,197.33,197.32,8.1186655]
[1755243347656,68.34146864,197.33,197.32,0.03]
[1755243348074,41.72211289,197.33,197.32,0.03]
[1755243348377,56.82832846,197.33,197.32,0.03]
[1755243348569,69.98464712,197.33,197.32,0.03]
[1755243348975,61.89598162,197.33,197.32,0.03]
[1755243349391,69.98464712,197.33,197.32,0.03]
[1755243349969,99.98464712,197.33,197.32,0.03]
[1755243350191,99.47224736,197.33,197.32,0.03]
[1755243351398,69.47224736,197.33,197.32,0.03]
[1755243351569,69.98464712,197.33,197.32,0.03]
[1755243352363,61.89598162,197.33,197.32,0.03]
[1755243352564,69.98464712,197.33,197.32,0.03]
[1755243354394,99.98464712,197.33,197.32,0.03]
[1755243354598,99.47224736,197.33,197.32,0.03]
[1755243359098,75.5359287,197.33,197.32,0.03]
[1755243359399,125.96464712,197.33,197.32,0.03]
[1755243359695,75.5359287,197.33,197.32,0.03]
[1755243359869,111.6359287,197.33,197.32,0.03]
[1755243360070,96.52971313,197.33,197.32,0.68]
[1755243360301,96.52971313,197.33,197.32,13.83657549]
[1755243360302,31.04906888,197.33,197.32,13.83657549]
[1755243360513,67.14906888,197.33,197.32,13.83657549]
[1755243360803,37.14906888,197.33,197.32,0.03]
[1755243361306,37.14906888,197.33,197.32,8.8386655]
[1755243361482,37.14906888,197.33,197.32,8.1186655]
[1755243361683,37.14906888,197.33,197.32,13.90657549]
[1755243362208,1.10906888,197.34,197.32,13.90657549]
[1755243362395,37.16906888,197.33,197.32,5.09790999]
[1755243362581,0.06,197.34,197.32,13.18657549]
[1755243362783,0.06,197.34,197.33,8.0886655]
[1755243362978,0.06,197.35,197.33,8.8086655]
[1755243363195,0.06,197.35,197.34,8.8086655]
[1755243364111,0.06,197.37,197.34,9.31540513]
[1755243364404,0.06,197.37,197.36,13.15554835]
[1755243364917,0.06,197.37,197.36,5.78688285]
[1755243365104,1.10906888,197.37,197.36,13.87554835]
[1755243365405,37.22906888,197.37,197.36,13.87554835]
[1755243366107,37.22906888,197.37,197.36,8.0886655]
[1755243368034,37.22906888,197.37,197.34,5.06739637]
[1755243368185,37.22906888,197.37,197.36,8.0886655]
[1755243368715,1.04906888,197.36,197.33,5.06763144]
[1755243368893,1.04906888,197.35,197.33,13.15629694]
[1755243369228,37.14906888,197.34,197.33,13.15631866]
[1755243369430,37.14906888,197.34,197.33,13.87631866]
[1755243369909,37.14906888,197.34,197.32,5.09786178]
[1755243370300,1.04906888,197.33,197.32,0.03]
[1755243370808,1.76906888,197.33,197.32,0.03]
[1755243371905,16.87528445,197.33,197.32,0.03]
[1755243372104,30.03160311,197.33,197.32,0.03]
[1755243372637,33.40835393,197.33,197.32,0.03]
[1755243372941,20.25203527,197.33,197.32,0.03]
[1755243373098,16.87528445,197.33,197.32,0.03]
[1755243373301,20.25234326,197.33,197.32,0.03]
[1755243373511,52.97528445,197.33,197.32,0.03]
[1755243373832,52.25528445,197.33,197.32,0.03]
[1755243374010,37.16906888,197.33,197.32,0.03]
[1755243374216,1.04906888,197.33,197.32,0.03]
[1755243374420,37.16906888,197.33,197.32,0.03]
[1755243374618,52.27528445,197.33,197.32,0.03]
[1755243374921,16.87528445,197.33,197.32,0.03]
[1755243375120,52.99528445,197.33,197.32,0.03]
[1755243375638,75.05527774,197.33,197.32,0.03]
[1755243375823,101.05527774,197.33,197.32,0.03]
[1755243376134,100.54287798,197.33,197.32,0.03]
[1755243376732,130.54287798,197.33,197.32,0.03]
[1755243377105,104.54287798,197.33,197.32,0.03]
[1755243379737,55.2590299,197.31,197.3,0.03]
[1755243379932,95.22762458,197.31,197.3,0.03]
[1755243380137,95.94762458,197.31,197.3,0.03]
[1755243380838,131.01579142,197.31,197.3,0.03]
[1755243381047,130.50339166,197.31,197.3,0.03]
[1755243384344,100.50339166,197.31,197.3,0.03]
[1755243387320,130.50339166,197.31,197.3,0.03]
[1755243388838,117.39964621,197.31,197.3,0.03]
[1755243389621,130.50339166,197.31,197.3,0.03]
[1755243390034,130.50339166,197.31,197.3,1e-08]
[1755243391058,129.78339166,197.31,197.3,1e-08]
[1755243392848,93.70339166,197.31,197.3,1e-08]
[1755243393155,129.72339166,197.31,197.3,1e-08]
[1755243395163,130.40339166,197.31,197.3,1e-08]
[1755243396669,117.29964621,197.31,197.3,1e-08]
[1755243398086,117.27964621,197.31,197.3,1e-08]
[1755243399066,119.31108221,197.31,197.3,1e-08]
[1755243400149,42.15528445,197.27,197.26,0.03]
[1755243400354,89.63335667,197.27,197.26,0.03]
[1755243400562,90.31335667,197.27,197.26,0.03]
[1755243400963,90.82575643,197.27,197.26,0.03]
[1755243401471,95.21495093,197.27,197.26,0.03]
[1755243401676,125.21495093,197.27,197.26,0.03]
[1755243401854,116.60067387,197.27,197.26,0.03]
[1755243402059,113.22447895,197.27,197.26,0.69]
[1755243402451,121.32635625,197.27,197.26,0.03]
[1755243402651,122.00635625,197.27,197.26,0.03]
[1755243402856,125.37097481,197.27,197.26,0.03]
[1755243404860,16.15528445,197.25,197.24,0.03]
[1755243405051,16.15528445,197.25,197.22,0.03]
[1755243405052,16.15528445,197.23,197.22,0.03]
[1755243405257,64.13418007,197.23,197.22,0.03]
[1755243405465,69.88440265,197.23,197.22,0.03]
[1755243406074,99.88440265,197.23,197.22,0.03]
[1755243406257,96.00738433,197.23,197.22,0.03]
[1755243406455,95.83978409,197.23,197.22,0.03]
[1755243406895,108.66768421,197.23,197.22,0.69]
[1755243407071,108.15528445,197.23,197.22,0.69]
[1755243407386,122.00738433,197.23,197.22,0.03]
[1755243408886,113.90550703,197.23,197.22,0.03]
[1755243409072,121.32738433,197.23,197.22,0.03]
[1755243409578,91.32738433,197.23,197.22,0.03]
[1755243409783,78.15528445,197.23,197.22,0.69]
[1755243409994,83.73790679,197.23,197.22,0.69]
[1755243410197,215.63790679,197.23,197.22,0.69]
[1755243410396,210.05528445,197.23,197.22,0.69]
[1755243410617,223.22738433,197.23,197.22,0.03]
[1755243412270,223.90738433,197.23,197.22,0.03]
[1755243412461,253.22738433,197.23,197.22,0.03]
[1755243412989,223.22738433,197.23,197.22,0.03]
[1755243413372,227.27617116,197.23,197.22,0.03]
[1755243414577,226.59617116,197.23,197.22,0.03]
[1755243415373,227.27617116,197.23,197.22,0.03]
[1755243415572,257.27617116,197.23,197.22,0.03]
[1755243415773,256.59617116,197.23,197.22,0.03]
[1755243416208,124.69617116,197.23,197.22,0.03]
[1755243417097,125.37617116,197.23,197.22,0.03]
[1755243417802,99.37617116,197.23,197.22,0.03]
[1755243418407,16.15528445,197.22,197.21,0.03]
[1755243418573,58.81834834,197.22,197.21,0.03]
[1755243419301,65.921193,197.22,197.21,0.03]
[1755243419781,35.921193,197.22,197.21,0.03]
[1755243420684,33.208828,197.22,197.21,0.03]
[1755243421097,20.03647104,197.22,197.21,0.69]
[1755243421310,56.03647104,197.22,197.21,0.69]
[1755243421483,61.1069507,197.22,197.21,0.69]
[1755243421685,56.03647104,197.22,197.21,0.69]
[1755243422781,91.1069507,197.22,197.21,0.03]
[1755243423391,69.208828,197.22,197.21,0.03]
[1755243423791,61.1069507,197.22,197.21,0.03]
[1755243423992,69.208828,197.22,197.21,0.03]
[1755243424887,91.1069507,197.22,197.21,0.03]
[1755243426489,86.03647104,197.22,197.21,0.69]
[1755243426704,82.66768421,197.22,197.21,0.69]
[1755243427409,82.66768421,197.22,197.21,0.03]
[1755243427616,69.21738951,197.22,197.21,0.03]
[1755243428285,69.93738951,197.22,197.21,0.03]
[1755243430715,99.93738951,197.22,197.21,0.03]
[1755243430887,99.42498975,197.22,197.21,0.03]
[1755243433410,99.42498975,197.22,197.2,0.03]
[1755243433411,23.20809287,197.21,197.2,0.03]
[1755243433593,58.14690985,197.21,197.2,0.03]
[1755243433926,63.21764662,197.21,197.2,0.03]
[1755243437801,55.11576932,197.21,197.2,0.03]
[1755243438001,25.11576932,197.21,197.2,0.03]
[1755243438617,61.11576932,197.21,197.2,0.03]
[1755243438793,82.04503255,197.21,197.2,0.69]
[1755243439108,87.11576932,197.21,197.2,0.69]
[1755243439512,56.04503255,197.21,197.2,0.69]
[1755243443724,52.66768421,197.21,197.2,0.69]
[1755243444227,56.05333144,197.21,197.2,0.69]
[1755243444512,1.10906888,197.22,197.2,8.7918773]
[1755243444723,1.10906888,197.22,197.21,8.7618773]
[1755243445027,16.15528445,197.21,197.2,0.03]
[1755243445320,28.87406215,197.21,197.2,0.03]
[1755243445621,58.87406215,197.21,197.2,0.03]
[1755243446392,63.94479892,197.21,197.2,0.03]
[1755243446702,94.14689045,197.21,197.2,0.03]
[1755243446912,64.14689045,197.21,197.2,0.03]
[1755243448838,196.04689045,197.21,197.2,0.03]
[1755243449028,195.53449069,197.21,197.2,0.03]
[1755243449228,191.33239916,197.21,197.2,0.03]
[1755243449536,195.53449069,197.21,197.2,0.03]
[1755243450033,225.53449069,197.21,197.2,0.03]
[1755243450902,199.53449069,197.21,197.2,0.03]
[1755243451520,195.33239916,197.21,197.2,0.03]
[1755243452126,199.09509407,197.21,197.2,0.03]
[1755243452331,16.15528445,197.2,197.19,0.03]
[1755243452540,107.93019585,197.2,197.19,0.03]
[1755243452834,107.41779609,197.2,197.19,0.03]
[1755243453132,99.31591879,197.2,197.19,0.03]
[1755243453346,107.41779609,197.2,197.19,0.03]
[1755243453836,103.18535121,197.2,197.19,1e-08]
[1755243454509,103.18535121,197.2,197.18,0.1]
[1755243454510,29.32841282,197.19,197.18,1e-08]
[1755243454717,67.69800813,197.19,197.18,1e-08]
[1755243455023,71.92733073,197.19,197.18,1e-08]
[1755243455210,71.92733073,197.19,197.17,0.03]
[1755243455211,15.10621557,197.18,197.17,0.03]
[1755243455414,15.10621557,197.18,197.09,8.1018773]
[1755243455415,69.38331748,197.18,197.09,0.72]
[1755243455618,69.53019636,197.17,197.16,1e-08]
[1755243455830,69.52400335,197.17,197.16,1e-08]
[1755243456139,67.69534703,197.17,197.16,1e-08]
[1755243456839,72.76711251,197.17,197.16,1e-08]
[1755243457033,42.76711251,197.17,197.16,1e-08]
[1755243457335,72.76711251,197.17,197.16,1e-08]
[1755243458654,72.76366128,197.17,197.16,1e-08]
[1755243458940,79.6676184,197.17,197.16,1e-08]
[1755243459510,72.76366128,197.17,197.16,1e-08]
[1755243461122,76.8915688,197.17,197.16,1e-08]
[1755243461523,72.76366128,197.17,197.16,1e-08]
[1755243462120,112.26893644,197.17,197.16,1e-08]
[1755243462316,54.61155057,197.17,197.16,0.72000001]
[1755243462516,90.61155057,197.17,197.16,0.72000001]
[1755243462741,117.12395033,197.17,197.16,0.72000001]
[1755243462959,116.61155057,197.17,197.16,0.72000001]
[1755243463663,90.61155057,197.17,197.16,0.72000001]
[1755243463838,91.12395033,197.17,197.16,0.72000001]
[1755243465130,91.12395033,197.17,197.16,1e-08]
[1755243465832,103.68156885,197.17,197.16,1e-08]
[1755243466031,103.16916909,197.17,197.16,1e-08]
[1755243466355,107.52530587,197.17,197.16,1e-08]
[1755243466548,115.4858392,197.17,197.16,1e-08]
[1755243466753,111.27056404,197.17,197.16,1e-08]
[1755243467124,115.48431891,197.17,197.16,1e-08]
[1755243467326,115.48428015,197.17,197.16,1e-08]
[1755243468130,24.25716175,197.13,197.12,0.03]
[1755243468330,94.15406215,197.13,197.12,0.03]
[1755243468748,64.15406215,197.13,197.12,0.03]
[1755243469125,69.22685675,197.13,197.12,0.03]
[1755243471454,99.22685675,197.13,197.12,0.03]
[1755243471758,90.61257969,197.13,197.12,0.03]
[1755243471957,91.12497945,197.13,197.12,0.75]
[1755243472136,46.66768421,197.13,197.12,0.75]
[1755243472335,52.15528445,197.13,197.12,0.75]
[1755243473239,52.66768421,197.13,197.12,0.75]
[1755243476656,61.81734158,197.13,197.12,0.03]
[1755243476961,61.10734158,197.13,197.12,0.03]
[1755243477843,91.10734158,197.13,197.12,0.03]
[1755243478571,82.66768421,197.13,197.12,0.03]
[1755243478752,82.66768421,197.13,197.12,0.75]
[1755243479262,52.66768421,197.13,197.12,0.75]
[1755243479761,61.10635523,197.13,197.12,0.03]
[1755243480474,52.66768421,197.13,197.12,0.03]
[1755243481983,57.74047881,197.13,197.12,0.03]
[1755243482172,56.03339188,197.13,197.12,0.03]
[1755243483767,91.10618648,197.13,197.12,0.03]
[1755243484067,86.03339188,197.13,197.12,0.03]
[1755243485075,91.10618648,197.13,197.12,0.03]
[1755243486970,61.10618648,197.13,197.12,0.03]
[1755243487369,61.79618648,197.13,197.12,0.03]
[1755243487771,61.10618648,197.13,197.12,0.03]
[1755243488580,61.79618648,197.13,197.12,0.03]
[1755243488881,69.89806378,197.13,197.12,0.03]
[1755243489253,61.79618648,197.13,197.12,0.03]
[1755243489654,56.03339188,197.13,197.12,0.03]
[1755243490073,91.10618648,197.13,197.12,0.03]
[1755243490273,86.03339188,197.13,197.12,0.03]
[1755243490658,56.03339188,197.13,197.12,0.03]
[1755243491878,4.41477655,197.13,197.12,8.8418773]
[1755243492088,40.39477655,197.13,197.12,8.8418773]
[1755243492790,40.39477655,197.13,197.12,0.74]
[1755243493386,40.39477655,197.13,197.12,8.8418773]
[1755243493591,1.04906888,197.14,197.12,13.91492924]
[1755243493890,35.98,197.14,197.13,8.8118773]
[1755243494268,35.98,197.15,197.13,8.8118773]
[1755243494467,35.98,197.15,197.14,8.8118773]
[1755243494880,35.98,197.15,197.14,13.88441458]
[1755243496289,35.98,197.16,197.14,13.88441458]
[1755243496493,35.98,197.16,197.15,8.8118773]
[1755243497583,35.98,197.16,197.15,13.88415728]
[1755243499394,35.98,197.17,197.15,13.88415728]
[1755243499593,0.06,197.18,197.16,8.8118773]
[1755243499781,0.06,197.18,197.17,8.8118773]
[1755243501070,0.06,197.18,197.17,13.88364278]
[1755243501784,0.06,197.2,197.19,26.0]
[1755243501964,0.06,197.22,197.19,34.1018773]
[1755243502167,0.06,197.22,197.21,8.1018773]
[1755243502566,0.06,197.22,197.21,8.8118773]
[1755243503085,0.06,197.22,197.21,13.88261407]
[1755243504382,0.06,197.22,197.21,13.17261407]
[1755243505064,0.06,197.22,197.21,8.1018773]
[1755243505268,0.75,197.22,197.21,8.1018773]
[1755243506169,0.06,197.22,197.21,8.1018773]
[1755243507007,1.10906888,197.22,197.21,8.1018773]
[1755243508067,0.06,197.22,197.21,13.88261407]
[1755243508679,0.06,197.24,197.21,13.88261407]
[1755243508894,0.06,197.24,197.23,8.1018773]
[1755243509305,0.06,197.24,197.23,13.88209988]
[1755243509500,0.06,197.25,197.23,13.88209988]
[1755243509686,0.06,197.25,197.24,8.8118773]
[1755243510784,0.06,197.25,197.24,8.1018773]
[1755243512107,0.06,197.25,197.24,13.88184282]
[1755243517617,0.06,197.25,197.24,13.17184282]
[1755243517999,0.73,197.25,197.24,8.1018773]
[1755243520704,0.06,197.25,197.24,8.1018773]
[1755243520909,1.10906888,197.25,197.24,8.1018773]
[1755243522502,1.10906888,197.25,197.24,8.1318773]
[1755243522827,37.71906888,197.25,197.24,0.03]
[1755243523122,57.89499294,197.25,197.24,0.03]
[1755243523528,1.04906888,197.23,197.22,0.03]
[1755243523722,16.15528445,197.23,197.22,0.03]
[1755243523920,16.82528445,197.23,197.22,0.03]
[1755243524720,21.89550703,197.23,197.22,0.03]
[1755243528413,33.35206735,197.23,197.22,0.03]
[1755243529232,25.25019005,197.23,197.22,0.03]
[1755243531708,55.25019005,197.23,197.22,0.03]
[1755243533608,91.19019005,197.23,197.22,0.03]
[1755243534117,91.70258981,197.23,197.22,0.03]
[1755243534543,223.60258981,197.23,197.22,0.03]
[1755243534747,231.19206735,197.23,197.22,0.03]
[1755243535939,73.02921601,197.23,197.22,0.03]
[1755243536140,73.54161577,197.23,197.22,0.03]
[1755243536322,73.54343864,197.23,197.22,0.03]
[1755243536522,65.44156134,197.23,197.22,0.03]
[1755243537045,73.54239376,197.23,197.22,0.03]
[1755243540756,65.44051646,197.23,197.22,0.03]
[1755243541057,73.54239376,197.23,197.22,0.03]
[1755243541247,77.75097222,197.23,197.22,0.03]
[1755243541447,73.54239376,197.23,197.22,1e-08]
[1755243541663,73.54239376,197.23,197.2,0.03]
[1755243541664,42.15528445,197.21,197.2,0.03]
[1755243541951,98.00892294,197.21,197.2,0.03]
[1755243542277,16.15528445,197.19,197.18,0.03]
[1755243542495,64.06424453,197.19,197.18,0.03]
[1755243542647,94.06424453,197.19,197.18,0.03]
[1755243542848,94.76424453,197.19,197.18,0.03]
[1755243543161,99.8354956,197.19,197.18,0.03]
[1755243543357,99.32309584,197.19,197.18,0.03]
[1755243545153,103.0587433,197.19,197.18,0.03]
[1755243545356,101.35556484,197.19,197.18,0.03]
[1755243546276,99.32309584,197.19,197.18,0.03]
[1755243546590,87.16653552,197.19,197.18,0.03]
[1755243546757,91.03828712,197.19,197.18,0.03]
[1755243547769,87.67893528,197.19,197.18,0.03]
[1755243548464,82.60768421,197.19,197.18,0.03]
[1755243548654,52.60768421,197.19,197.18,0.03]
[1755243548855,57.67893528,197.19,197.18,0.03]
[1755243550962,52.60768421,197.19,197.18,0.74]
[1755243551377,57.67893528,197.19,197.18,0.03]
[1755243551679,58.37893528,197.19,197.18,0.03]
[1755243552660,66.48081258,197.19,197.18,0.03]
[1755243552868,58.37893528,197.19,197.18,0.03]
[1755243553400,69.83834402,197.19,197.18,0.03]
[1755243553605,99.83834402,197.19,197.18,0.03]
[1755243553779,99.32594426,197.19,197.18,0.03]
[1755243555616,101.35851626,197.19,197.18,0.03]
[1755243556870,57.31663896,197.19,197.18,0.03]
[1755243557087,101.35851626,197.19,197.18,0.03]
[1755243557500,99.32594426,197.19,197.18,0.03]
[1755243557881,101.35841326,197.19,197.18,0.03]
[1755243558088,93.25653596,197.19,197.18,0.03]
[1755243558306,101.35841326,197.19,197.18,0.03]
[1755243559298,99.32594426,197.19,197.18,0.03]
[1755243560471,98.62594426,197.19,197.18,0.03]
[1755243561003,99.32594426,197.19,197.18,0.03]
[1755243561998,103.06057602,197.19,197.18,0.03]
[1755243562405,107.26732778,197.19,197.18,0.03]
[1755243562581,91.22406696,197.19,197.18,0.03]
[1755243562781,99.83834402,197.19,197.18,0.03]
[1755243562981,99.32594426,197.19,197.18,0.03]
[1755243563291,103.06276612,197.19,197.18,0.03]
[1755243563501,105.09533812,197.19,197.18,0.03]
[1755243563694,105.09533812,197.19,197.18,1e-08]
[1755243563898,109.30208988,197.19,197.18,1e-08]
[1755243564095,105.09533812,197.19,197.18,1e-08]
[1755243564290,109.30208988,197.19,197.18,1e-08]
[1755243566111,100.65851626,197.19,197.18,1e-08]
[1755243566409,108.60478516,197.19,197.18,1e-08]
[1755243566609,104.3980334,197.19,197.18,1e-08]
[1755243566811,79.30478516,197.19,197.18,1e-08]
[1755243566995,79.81718492,197.19,197.18,1e-08]
[1755243567595,75.61043316,197.19,197.18,1e-08]
[1755243567885,105.61043316,197.19,197.18,1e-08]
[1755243568086,105.0980334,197.19,197.18,1e-08]
[1755243568286,109.30969737,197.19,197.18,1e-08]
[1755243568503,16.15528445,197.17,197.16,0.03]
[1755243568711,85.96521565,197.17,197.16,0.03]
[1755243569688,91.03698113,197.17,197.16,0.03]
[1755243571728,95.50309825,197.17,197.16,0.03]
[1755243571893,107.81734446,197.17,197.16,0.03]
[1755243572218,107.3049447,197.17,197.16,0.03]
[1755243573732,107.30624893,197.17,197.16,0.03]
[1755243574607,109.33892393,197.17,197.16,0.03]
[1755243574813,79.33892393,197.17,197.16,0.03]
[1755243575408,60.50458137,197.17,197.16,0.74]
[1755243575807,61.01698113,197.17,197.16,0.74]
[1755243576120,61.01698113,197.17,197.16,0.03]
[1755243577301,63.04955313,197.17,197.16,0.03]
[1755243577817,105.62107754,197.17,197.16,0.03]
[1755243578027,109.32118562,197.17,197.16,0.03]
[1755243579408,105.10867778,197.17,197.16,0.03]
[1755243579600,105.10989157,197.17,197.16,0.03]
[1755243579800,109.33001773,197.17,197.16,0.03]
[1755243579999,105.10989157,197.17,197.16,0.03]
[1755243581626,109.33105855,197.17,197.16,0.03]
[1755243582026,105.10989157,197.17,197.16,0.03]
[1755243582527,109.33146098,197.17,197.16,0.03]
[1755243582694,100.50958368,197.17,197.16,0.03]
[1755243582899,105.10989157,197.17,197.16,0.03]
[1755243583443,41.10621557,197.15,197.14,0.03]
[1755243583603,123.94106148,197.15,197.14,0.03]
[1755243583805,123.42866172,197.15,197.14,0.03]
[1755243584141,98.4777306,197.15,197.14,0.03]
[1755243584338,94.25595677,197.15,197.14,0.03]
[1755243584541,94.76835653,197.15,197.14,0.03]
[1755243585225,98.99013036,197.15,197.14,0.03]
[1755243585416,98.4777306,197.15,197.14,0.03]
[1755243585731,94.25595677,197.15,197.14,0.03]
[1755243585934,91.01749563,197.15,197.14,0.03]
[1755243586243,91.01749563,197.15,197.14,0.74]
[1755243587621,111.94521565,197.15,197.14,0.74]
[1755243587827,111.43281589,197.15,197.14,0.74]
[1755243588334,120.98005932,197.15,197.14,0.03]
[1755243588522,125.20183315,197.15,197.14,0.03]
[1755243588834,90.97997381,197.15,197.14,0.03]
[1755243589016,91.49237357,197.15,197.14,0.03]
[1755243589513,121.49237357,197.15,197.14,0.03]
[1755243589713,120.97997381,197.15,197.14,0.03]
[1755243589924,120.25997381,197.15,197.14,0.03]
[1755243590712,120.97997381,197.15,197.14,0.03]
[1755243591038,125.20174764,197.15,197.14,0.03]
[1755243591532,120.97997381,197.15,197.14,0.03]
[1755243591911,90.97997381,197.15,197.14,0.03]
[1755243592112,91.49237357,197.15,197.14,0.03]
[1755243592312,95.71766906,197.15,197.14,0.03]
[1755243592514,91.49237357,197.15,197.14,0.03]
[1755243592715,65.49237357,197.15,197.14,0.03]
[1755243593517,68.9983506,197.15,197.14,0.03]
[1755243593920,98.9983506,197.15,197.14,0.03]
[1755243594115,98.48595084,197.15,197.14,0.03]
[1755243594515,99.20595084,197.15,197.14,0.03]
[1755243595716,98.48595084,197.15,197.14,0.03]
[1755243596228,68.48595084,197.15,197.14,0.03]
[1755243596434,68.9983506,197.15,197.14,0.03]
[1755243596836,33.0783506,197.15,197.14,0.03]
[1755243597036,69.00171997,197.15,197.14,0.03]
[1755243597538,64.77574294,197.15,197.14,0.03]
[1755243597840,64.75574294,197.15,197.14,0.03]
[1755243598220,65.47574294,197.15,197.14,0.03]
[1755243598536,26.0,197.14,197.13,0.03]
[1755243598744,74.29410905,197.14,197.13,0.03]
[1755243599317,104.29410905,197.14,197.13,0.03]
[1755243599523,236.19410905,197.14,197.13,0.03]
[1755243599742,241.26664633,197.14,197.13,0.03]
[1755243600246,205.36664633,197.14,197.13,0.03]
[1755243600427,241.26664633,197.14,197.13,0.03]
[1755243601253,233.2791376,197.14,197.13,0.03]
[1755243603312,241.26891886,197.14,197.13,0.03]
[1755243603911,237.03965744,197.14,197.13,0.03]
[1755243604815,207.03965744,197.14,197.13,0.03]
[1755243605024,211.26891886,197.14,197.13,0.03]
[1755243605237,207.03965744,197.14,197.13,0.03]
[1755243605521,211.26891886,197.14,197.13,0.03]
[1755243605733,171.60839902,197.14,197.13,0.03]
[1755243606045,211.27049138,197.14,197.13,0.03]